Cogmind - Beta 13 *** ADVENTURER MODE // 2024.05.15 @ 17:18:49 // Winter2019/RPGLIKE Player: Gallgagger Result: Self-destructed Performance ------------- Evolutions (2) 1000 Regions Visited (7) 1400 Robots Destroyed (67) 335 Value Destroyed (1846) 1846 Prototype IDs (2) 40 Alien Tech Used (0) 0 Bonus (930) 930 TOTAL SCORE: 5551 Bonus ------- High Alert Combat Kills 247 Entered Garrisons 200 Used RIF Installer 500 Friendly Fire -17 Cogmind --------- Core Integrity 1143/1150 Matter 300/300 Energy 181/185 System Corruption 6% Temperature Cool (10) Movement Flying (26) Location -8/Storage Parts ------- > --- POWER (2) -------- Light Ion Engine Light Nuclear Core > --- PROPULSION (5) --- Flight Unit Flight Unit Flight Unit VTOL Module Improved VTOL Module > --- UTILITY (5) ------ Improved Heat Sink Improved Heat Sink Advanced Weight Redist. System Improved Signal Interpreter Hacking Suite > --- WEAPON (2) ------- Field Laser Field Laser > --- INVENTORY (2) ---- Flight Unit Shock Trap Peak State ------------ > --- POWER ------------ Light Ion Engine Light Nuclear Core > --- PROPULSION ------- Flight Unit Flight Unit Flight Unit VTOL Module Improved VTOL Module > --- UTILITY ---------- Improved Heat Sink Improved Heat Sink Advanced Weight Redist. System Improved Signal Interpreter Hacking Suite > --- WEAPON ----------- Field Laser Field Laser > --- INVENTORY -------- Flight Unit Shock Trap [Rating: 34] Favorites ----------- Power Light Nuclear Core Engine Ion Engine Power Core Light Nuclear Core Propulsion Flight Unit Wheel Wheel Flight Unit Flight Unit Utility Improved Heat Sink Device Improved Heat Sink Processor Improved Signal Interpreter Hackware Hacking Suite Weapon Assault Rifle Energy Gun Field Laser Ballistic Gun Assault Rifle Build | -11 -10 -10 -10 -9 -8 -8 -8 ------- Run | Yrd Mat Min Exi Min Mat Gar Sto Slots Evolved 10 | 4 . . . 2 3 1 . Power 1 | 1 . . . . . . . Propulsion 4 | 1 . . . 2 1 . . Utility 4 | 1 . . . . 2 1 . Weapon 1 | 1 . . . . . . . Parts Attached 29 | 4 5 2 . 2 12 2 2 Power 4 | . 3 . . . . 1 . Engine 3 | . 2 . . . . 1 . Core 1 | . 1 . . . . . . Reactor . | . . . . . . . . Propulsion 10 | 2 2 . . 2 2 . 2 Treads . | . . . . . . . . Leg . | . . . . . . . . Wheel 2 | 2 . . . . . . . Hover . | . . . . . . . . Flight 8 | . 2 . . 2 2 . 2 Utility 6 | . . 2 . . 3 1 . Device 4 | . . 2 . . 1 1 . Storage . | . . . . . . . . Processor 1 | . . . . . 1 . . Hackware 1 | . . . . . 1 . . Protection . | . . . . . . . . Artifact . | . . . . . . . . Weapon 9 | 2 . . . . 7 . . Energy Gun 7 | . . . . . 7 . . Energy Cannon . | . . . . . . . . Ballistic Gun 2 | 2 . . . . . . . Ballistic Cannon . | . . . . . . . . Launcher . | . . . . . . . . Special Weapon . | . . . . . . . . Impact Weapon . | . . . . . . . . Slashing Weapon . | . . . . . . . . Piercing Weapon . | . . . . . . . . Special Melee Weapon . | . . . . . . . . Unidentified Prototypes 2 | . . . . . 1 . 1 Parts Lost . | . . . . . . . . Power . | . . . . . . . . Propulsion . | . . . . . . . . Utility . | . . . . . . . . Weapon . | . . . . . . . . Highest Loss Streak . | . . . . . . . . To Critical Strikes . | . . . . . . . . Average Slot Usage (%) 82 | . 57 97 100 82 83 95 100 Engine 5 | . 8 12 12 1 . 2 7 Core 7 | . . 12 12 10 7 7 7 Wheel 3 | . 16 . . . . . . Flight 26 | . 6 25 25 30 35 37 35 Device 14 | . . 22 25 20 17 16 21 Processor 1 | . . . . . . 7 7 Hackware 2 | . . . . . 4 7 7 Energy Gun 7 | . . . . . 15 14 14 Ballistic Gun 12 | . 25 25 25 20 . . . Naked Turns . | . . . . . . . . Heaviest Build 16 | 4 14 16 16 16 13 16 16 Greatest Support 45 | 36 36 18 18 26 44 44 45 Greatest Overweight (x) . | . . . . . . . . Average Overweight (x) . | . . . . . . . . Largest Inventory Capacity 2 | 2 2 2 2 2 2 2 2 Average Capacity 2 | 2 2 2 2 2 2 2 2 Most Carried 2 | . 1 2 2 2 2 2 2 Average Carried 1 | . . 1 2 1 1 2 2 Final Capacity 2 | 2 2 2 2 2 2 2 2 Final Carried 2 | . 1 2 2 1 2 2 2 Class Distribution -------------------- 46% | Scavenger-Sprinter 28% | Scavenger-Mutant 25% | Mutant Dominant Class ---------------- Mutant | -10/Materials Scavenger-Mutant | -10/Mines Scavenger-Mutant | -10/Exiles Scavenger-Mutant | -9/Mines Scavenger-Sprinter | -8/Materials Scavenger-Sprinter | -8/Garrison Scavenger-Sprinter | -8/Storage Resources | -11 -10 -10 -10 -9 -8 -8 -8 ----------- Run | Yrd Mat Min Exi Min Mat Gar Sto Matter Collected 817 | 240 224 62 . 122 120 29 20 Remotely . | . . . . . . . . Salvage Created 1862 | . 279 26 . 152 785 504 116 Parts 118 | . 22 10 . 5 47 21 13 Haulers Intercepted . | . . . . . . . . Recyclers Shooed . | . . . . . . . . Parts Field Recycled . | . . . . . . . . Retrieved Matter . | . . . . . . . . Parts Self-Destructed . | . . . . . . . . Prevented . | . . . . . . . . Kills | -11 -10 -10 -10 -9 -8 -8 -8 ------- Run | Yrd Mat Min Exi Min Mat Gar Sto Combat Hostiles Destroyed 70 | . 11 5 . 9 25 15 5 Guns 67 | . 11 5 . 9 24 13 5 Classes Destroyed 6 | . 2 . . 1 2 1 . Watcher 3 | . . . . . 2 . 1 Swarmer 31 | . 6 2 . 3 10 8 2 Grunt 21 | . 5 3 . . 8 4 1 Duelist 3 | . . . . . . 3 . Sentry 9 | . . . . . 7 . 2 Assembled 6 | . . . . 6 . . . Best Kill Streak 6 | . 6 3 . 6 6 6 5 Combat Bots Only 6 | . 6 3 . 6 6 6 4 Max Kills in Single Turn 2 | . 1 2 . 1 1 1 1 Gunslinging 1 | . . 1 . . . . . Exploded . | . . . . . . . . Melee . | . . . . . . . . Uniques/NPCs Destroyed . | . . . . . . . . Combat | -11 -10 -10 -10 -9 -8 -8 -8 -------- Run | Yrd Mat Min Exi Min Mat Gar Sto Hostile Shots Fired 271 | . 53 15 . 25 88 60 30 Missed 109 | . 20 3 . 11 34 26 15 Damage Taken 1648 | . 253 113 . 244 557 325 156 Core 1315 | . 198 96 . 202 444 252 123 Absorbed by Shields . | . . . . . . . . Redirected to Core 1022 | . 163 54 . 143 337 227 98 Ignored by Resistances 488 | . 80 35 . 67 163 98 45 Core Remaining (%) 85 | 100 . . . 70 . . . Volleys Fired 171 | . 29 7 . 17 67 38 13 Largest 2 | . 2 2 . 2 2 2 2 Hottest 126 | . 40 40 . 40 126 126 126 Shots Fired 342 | . 58 14 . 34 134 76 26 Gun 342 | . 58 14 . 34 134 76 26 Cannon . | . . . . . . . . Launcher . | . . . . . . . . Special . | . . . . . . . . Kinetic 106 | . 58 14 . 34 . . . Thermal 236 | . . . . . 134 76 26 Explosive . | . . . . . . . . Electromagnetic . | . . . . . . . . Robot Hit Streak 44 | . 11 24 . 8 33 44 17 Robot Miss Streak 2 | . 2 . . 2 1 2 1 Penetration Max . | . . . . . . . . Secondary Targets 13 | . 1 2 . 1 2 6 1 Max Gunslinging Chain 1 | . 1 1 . 1 1 1 1 Shots Hit Robots 287 | . 42 13 . 26 116 66 24 Core Hits 113 | . 17 6 . 14 45 20 11 Critical Kills . | . . . . . . . . Critical Parts Destroyed 2 | . 1 . . 1 . . . Critical Strikes 13 | . 1 . . 1 6 3 2 Burn 11 | . . . . . 6 3 2 Destroy 2 | . 1 . . 1 . . . Melee Attacks . | . . . . . . . . Impact . | . . . . . . . . Slashing . | . . . . . . . . Piercing . | . . . . . . . . Sneak Attacks . | . . . . . . . . Combat Hostiles . | . . . . . . . . Follow-up Attacks . | . . . . . . . . Damage Inflicted 4531 | . 529 167 . 321 1994 1116 404 Guns 4531 | . 529 167 . 321 1994 1116 404 Cannons . | . . . . . . . . Explosions . | . . . . . . . . Melee . | . . . . . . . . Ramming . | . . . . . . . . Kinetic 1017 | . 529 167 . 321 . . . Thermal 3514 | . . . . . 1994 1116 404 Explosive . | . . . . . . . . Electromagnetic . | . . . . . . . . Impact . | . . . . . . . . Slashing . | . . . . . . . . Piercing . | . . . . . . . . Highest Corruption 6 | . . . . . 4 4 6 Average Corruption 4 | . . . . . 4 4 4 Corruption Purged . | . . . . . . . . Corruption Blocked . | . . . . . . . . Effects 14 | . . . . . 6 8 . Message Errors 4 | . . . . . 2 2 . Matter Fused 1 | . . . . . . 1 . Energy Discharges 3 | . . . . . . 3 . Data Loss (minor) 5 | . . . . . 3 2 . Data Loss (major) 1 | . . . . . 1 . . Overload Shots . | . . . . . . . . Overflow Damage . | . . . . . . . . Projectiles . | . . . . . . . . Explosions . | . . . . . . . . Melee . | . . . . . . . . Knockbacks . | . . . . . . . . Impact . | . . . . . . . . Kinetic . | . . . . . . . . Secondary . | . . . . . . . . Self-Inflicted Damage . | . . . . . . . . Shots . | . . . . . . . . Rammed . | . . . . . . . . Targets Rammed . | . . . . . . . . Kicked . | . . . . . . . . Crushed . | . . . . . . . . Highest Temperature 7 | . . 7 . . . . . Average Temperature 7 | . . 7 . . . . . Received Heat Transfer 702 | . 117 90 . . 288 144 63 Siege Activations . | . . . . . . . . Robots Corrupted . | . . . . . . . . Combat Hostiles . | . . . . . . . . Parts Fried . | . . . . . . . . Impact Corruptions . | . . . . . . . . Robots Melted 3 | . . . . . 1 2 . Combat Hostiles 3 | . . . . . 1 2 . Parts Melted 31 | . . . . . 22 6 3 Heat Transferred 8473 | . . . . . 4773 2664 1036 Parts Sabotaged . | . . . . . . . . Parts Stolen . | . . . . . . . . Parts Stripped . | . . . . . . . . Power Chain Reactions . | . . . . . . . . Alert | -11 -10 -10 -10 -9 -8 -8 -8 ------- Run | Yrd Mat Min Exi Min Mat Gar Sto Peak Influence 762 | . 397 265 . 100 762 731 499 Initial 371 | . . 130 . . 33 371 306 Average 297 | . 150 218 . 23 419 588 394 Maximum Alert Level 3 | . 1 1 . . 3 3 2 Low Security (%) 34 | 100 55 5 . 100 28 . . Level 1 34 | . 44 94 . . 19 7 54 Level 2 24 | . . . . . 33 82 45 Level 3 6 | . . . . . 17 9 . Level 4 . | . . . . . . . . Level 5 . | . . . . . . . . High Security . | . . . . . . . . Max Security . | . . . . . . . . Squads Dispatched 4 | . 1 . . . 1 . 2 Investigation 1 | . 1 . . . . . . Extermination . | . . . . . . . . Reinforcement 3 | . . . . . 1 . 2 Assault . | . . . . . . . . Garrison . | . . . . . . . . Intercept . | . . . . . . . . Searches Triggered . | . . . . . . . . Construction Impeded . | . . . . . . . . Haulers Reinforced . | . . . . . . . . Active Scanning Responses . | . . . . . . . . Cargo Convoy Interrupts . | . . . . . . . . Stealth | -11 -10 -10 -10 -9 -8 -8 -8 --------- Run | Yrd Mat Min Exi Min Mat Gar Sto Distress Signals 1 | . . . . . 1 . . Communications Jammed . | . . . . . . . . Distress Signals . | . . . . . . . . Times Spotted 103 | . 19 6 . 22 34 14 8 Peak Tracking Total 16 | . 7 3 . 16 6 7 6 Tactical Retreats 10 | . 1 1 . 3 3 1 1 Traps | -11 -10 -10 -10 -9 -8 -8 -8 ------- Run | Yrd Mat Min Exi Min Mat Gar Sto Traps Triggered 4 | . 1 . . . 1 2 . Indirectly . | . . . . . . . . Trap Hack Attempts . | . . . . . . . . Triggered . | . . . . . . . . Disarmed . | . . . . . . . . Reprogrammed . | . . . . . . . . Reused . | . . . . . . . . Traps Extracted . | . . . . . . . . Installed . | . . . . . . . . Triggered . | . . . . . . . . Most Traps Carried 1 | . . 1 1 1 1 1 1 Machines | -11 -10 -10 -10 -9 -8 -8 -8 ---------- Run | Yrd Mat Min Exi Min Mat Gar Sto Machines Disabled . | . . . . . . . . Max in Single Turn . | . . . . . . . . Machines Repaired . | . . . . . . . . Machines Dismantled . | . . . . . . . . Machines Sabotaged . | . . . . . . . . Overloaded Fab Kills . | . . . . . . . . Hacking | -11 -10 -10 -10 -9 -8 -8 -8 --------- Run | Yrd Mat Min Exi Min Mat Gar Sto Machines Accessed 7 | . 1 . 1 . 2 1 2 Terminals 5 | . 1 . . . 1 1 2 Fabricators . | . . . . . . . . Repair Stations . | . . . . . . . . Recycling Units . | . . . . . . . . Scanalyzers . | . . . . . . . . Garrison Access 1 | . . . . . 1 . . Total Hacks 12 | . 1 . 4 . 3 1 3 Successful 11 | . 1 . 4 . 3 1 2 Failed 1 | . . . . . . . 1 Catastrophic . | . . . . . . . . Database Lockouts . | . . . . . . . . Manual 4 | . . . . . 2 . 2 Terminals 7 | . 1 . . . 2 1 3 Fabricators . | . . . . . . . . Repair Stations . | . . . . . . . . Recycling Units . | . . . . . . . . Scanalyzers . | . . . . . . . . Garrison Access 1 | . . . . . 1 . . Terminal Hacks 7 | . 1 . 4 . . 1 1 Record 4 | . . . 4 . . . . Open Door 1 | . . . . . . . 1 Alert Level 1 | . 1 . . . . . . Garrison Registry 1 | . . . . . . 1 . Fabricator Hacks . | . . . . . . . . Repair Station Hacks . | . . . . . . . . Recycling Unit Hacks . | . . . . . . . . Scanalyzer . | . . . . . . . . Garrison Access Hacks 1 | . . . . . 1 . . Unlock Access 1 | . . . . . 1 . . Unauthorized Hacks 3 | . . . . . 2 . 1 Terminals 3 | . . . . . 2 . 1 Assimilate 2 | . . . . . 1 . 1 Botnet 1 | . . . . . 1 . . Fabricators . | . . . . . . . . Repair Stations . | . . . . . . . . Recycling Units . | . . . . . . . . Scanalyzers . | . . . . . . . . Garrison Access . | . . . . . . . . Data Cores Recovered . | . . . . . . . . Used . | . . . . . . . . Hacking Detections 2 | . . . . . . 1 1 Full Trace Events . | . . . . . . . . Feedback Events . | . . . . . . . . Feedback Blocked . | . . . . . . . . Robot Schematics Acquired . | . . . . . . . . Robots Built . | . . . . . . . . Authchips . | . . . . . . . . Time . | . . . . . . . . Total Robot Build Rating . | . . . . . . . . Part Schematics Acquired . | . . . . . . . . Parts Built . | . . . . . . . . Authchips . | . . . . . . . . Time . | . . . . . . . . Total Part Build Rating . | . . . . . . . . Parts Repaired . | . . . . . . . . Time . | . . . . . . . . Parts Recycled . | . . . . . . . . Recycled Matter . | . . . . . . . . Retrieved Matter . | . . . . . . . . Retrieved Components . | . . . . . . . . Parts Scanalyzed . | . . . . . . . . Part Schematics Acquired . | . . . . . . . . Parts Damaged . | . . . . . . . . Bothacking | -11 -10 -10 -10 -9 -8 -8 -8 ------------ Run | Yrd Mat Min Exi Min Mat Gar Sto Used RIF Installer 1 | . . . . . . 1 . Robots Hacked . | . . . . . . . . Non-combat . | . . . . . . . . Combat . | . . . . . . . . Robot Hacks Applied . | . . . . . . . . Relay Couplers Released . | . . . . . . . . Fabnet Peak Effective % . | . . . . . . . . Robots Rewired . | . . . . . . . . Allies Hacked . | . . . . . . . . Hacks Repelled . | . . . . . . . . Allies | -11 -10 -10 -10 -9 -8 -8 -8 -------- Run | Yrd Mat Min Exi Min Mat Gar Sto Total Allies 2 | . . . . . 1 . 1 Largest Group 2 | . . . . . 1 1 2 Highest-Rated Group 19 | . . . . . 10 9 19 Highest-Rated Ally 10 | . . . . . 10 9 10 Total Orders . | . . . . . . . . Ally Attacks . | . . . . . . . . Total Damage . | . . . . . . . . Kills . | . . . . . . . . Allies Corrupted . | . . . . . . . . Allies Melted . | . . . . . . . . Intel | -11 -10 -10 -10 -9 -8 -8 -8 ------- Run | Yrd Mat Min Exi Min Mat Gar Sto Robot Analysis Total . | . . . . . . . . Derelict Logs Recovered 3 | . . 1 . 2 . . . Drone Launches . | . . . . . . . . Drone Recoveries . | . . . . . . . . Exploration | -11 -10 -10 -10 -9 -8 -8 -8 ------------- Run | Yrd Mat Min Exi Min Mat Gar Sto Turns Passed 1806 | 39 394 276 53 208 453 290 93 Spaces Moved 2847 | 38 402 640 142 448 563 482 132 Core 1 | 1 . . . . . . . Treads . | . . . . . . . . Legs . | . . . . . . . . Wheels 241 | 37 204 . . . . . . Hover . | . . . . . . . . Flight 2605 | . 198 640 142 448 563 482 132 Fastest Speed 26 | 50 37 37 37 31 27 27 26 Average Speed 37 | 88 64 37 37 33 28 27 26 Slowest Speed 90 | 90 90 37 37 37 31 27 29 Overloaded Moves . | . . . . . . . . Propulsion Burnouts . | . . . . . . . . Robots Hopped 21 | . 2 4 . 6 3 . 6 Cave-ins Triggered . | . . . . . . . . Exploration Rate (%) 50 | 3 62 94 49 70 45 49 30 Regions Visited 7 Branch Regions 4 Pre-discovered Areas 2 | . . . 1 1 . . . Known Exits Taken 1 | . . . . . 1 . . Unknown Exits Taken 5 | 1 1 1 1 1 . . . Scrap Searched 2 | . . 1 . 1 . . . Spaces Dug . | . . . . . . . . Terrain Destroyed . | . . . . . . . . Melee . | . . . . . . . . Projectile . | . . . . . . . . AOE . | . . . . . . . . Terrain Rammed . | . . . . . . . . Walls Destroyed . | . . . . . . . . Machines Disabled . | . . . . . . . . Actions | -11 -10 -10 -10 -9 -8 -8 -8 --------- Run | Yrd Mat Min Exi Min Mat Gar Sto Total 3210 | 41 474 659 141 463 714 561 157 Wait 103 | . 32 3 . 1 39 28 . Move 2796 | 37 397 631 141 435 556 478 121 Hop 20 | . 2 4 . 6 3 . 5 Pick Up 2 | . 1 1 . . . . . Fast Attach 27 | 4 5 2 . 1 11 2 2 Attach 1 | . . . . 1 . . . Detach . | . . . . . . . . Swap 1 | . . . . . 1 . . Drop 13 | . 3 . . . 8 . 2 Fire 171 | . 29 7 . 17 67 38 13 Melee . | . . . . . . . . Ram . | . . . . . . . . Kick . | . . . . . . . . Crush . | . . . . . . . . Escape Stasis 4 | . . . . . . 4 . Rewire . | . . . . . . . . Trap . | . . . . . . . . Miscellaneous 72 | . 5 11 . 2 29 11 14 Route ------- -11/Scrapyard -10/Materials (discovered 3 exits: [*Mat x2] / [*Min]) -10/Mines (discovered 3 exits: [*Mat x2] / *Exi) -10/Exiles -9/Mines -8/Materials (discovered 3 exits: *Fac / *Sto / Gar) -8/Garrison (discovered 3 exits: *Sto x3) -8/Storage (discovered 1 exit: Rec) History --------- Turn | Location | Event 1 | -11/Scrapyard | Upgraded with Power slot (x1) 1 | -11/Scrapyard | Upgraded with Propulsion slot (x1) 1 | -11/Scrapyard | Upgraded with Utility slot (x1) 1 | -11/Scrapyard | Upgraded with Weapon slot (x1) 18 | -11/Scrapyard | Discovered new exit (range 15) 40 | -11/Scrapyard | Entered Materials 102 | -10/Materials | Discovered new exit (range 16) 324 | -10/Materials | Build established: Mutant 338 | -10/Materials | Discovered new exit (range 9) 367 | -10/Materials | Discovered new exit (range 13) 434 | -10/Materials | Entered Mines 436 | -10/Mines | Reached level 2 501 | -10/Mines | Learned Materials garrison access intel 531 | -10/Mines | Deemed a non-threat by the Exiles lab entrance 531 | -10/Mines | Discovered new exit (range 5) 558 | -10/Mines | Found a hidden stash of uninstalled traps 649 | -10/Mines | Received a Rocket Launcher from a helpful Derelict 652 | -10/Mines | Discovered new exit (range 10) 675 | -10/Mines | Discovered new exit (range 11) 710 | -10/Mines | Entered Exiles 721 | -10/Exiles | Met 8R-AWN 726 | -10/Exiles | Met EX-HEX 741 | -10/Exiles | Met EX-DEC 742 | -10/Exiles | Learned location of Zion (-7) 759 | -10/Exiles | Discovered new exit (range 10) 763 | -10/Exiles | Entered Mines 765 | -9/Mines | Reached level 3 767 | -9/Mines | Assembled infested the area 767 | -9/Mines | Upgraded with Propulsion slot (x2) 772 | -9/Mines | Assisted by a Guerilla fighting off Assembled 772 | -9/Mines | Learned location of 1 exit from Proximity Caves 788 | -9/Mines | Build established: Scavenger-Mutant 935 | -9/Mines | Learned location of Storage (-8) 969 | -9/Mines | Discovered new exit (range 6) 971 | -9/Mines | Entered Materials 972 | -8/Materials | Loaded intel: 1 garrison access location 973 | -8/Materials | Reached level 4 973 | -8/Materials | Reached level 5 973 | -8/Materials | Reached level 6 980 | -8/Materials | Upgraded with Utility slot (x2) 1102 | -8/Materials | Reached level 7 1125 | -8/Materials | Discovered new exit (range 5) 1238 | -8/Materials | Reached level 8 1246 | -8/Materials | Upgraded with Propulsion slot (x1) 1275 | -8/Materials | Build established: Scavenger-Sprinter 1344 | -8/Materials | Discovered new exit (range 14) 1378 | -8/Materials | Identified exit to Factory 1409 | -8/Materials | Identified exit to Garrison 1424 | -8/Materials | Entered Garrison 1424 | -8/Garrison | Accompanied by 1 ally 1426 | -8/Garrison | Reached level 9 1430 | -8/Garrison | Discovered new exit (range 76) 1430 | -8/Garrison | Discovered new exit (range 45) 1430 | -8/Garrison | Discovered new exit (range 72) 1442 | -8/Garrison | Triggered checkpoint 1442 | -8/Garrison | Triggered checkpoint 1528 | -8/Garrison | Identified exit to Storage 1536 | -8/Garrison | Attempted to access garrison exit controls, blocked by remote lockdown 1573 | -8/Garrison | Reached level 10 1608 | -8/Garrison | Installed Relay Interface Framework 1649 | -8/Garrison | Upgraded with Utility slot (x1) 1714 | -8/Garrison | Entered Storage 1714 | -8/Storage | Accompanied by 1 ally 1715 | -8/Storage | Identified exit to Recycling 1716 | -8/Storage | Reached level 11 1807 | -8/Storage | Self-destructed Last Messages --------------- 01781_ Heat Sink melted. 01781_ Y-45 Defender destroyed. 01785_ R-06 Scavenger collects Hvy. Laser. 01787_ S-10 Pest destroyed. 01788_ K-01 Serf collects debris. 01790_ Acquired 20 matter. 01791_ K-01 Serf collects debris. 01791_ R-06 Scavenger collects Lgt. Ion Engine. 01793_ Lgt. Ion Engine melted. 01793_ S-10 Pest destroyed. 01793_ R-06 Scavenger collects Lgt. Assault Rifle. 01795_ K-01 Serf collects debris. 01796_ R-06 Scavenger collects Flight Unit. 01799_ K-01 Serf collects debris. 01800_ Used Protomatter to restore core integrity (+147, depleted) 01803_ K-01 Serf collects debris. 01804_ W-25 Informer destroyed. 01804_ K-01 Serf collects debris. Map ----- +----------------------------------------------------+ | ###+#########+#########???????????? | | # ## #???????????????? | | # """ ## """ [#???????????????? | | # """ =## """ #???????????????? | | # """ ## """ #???????????????? | | # !%## ######+#????????? | | # ! ## """"" + #????? | | #""" ## """"" # ###????????? | | #"R ## """"" # #????+####?? | | #""" ## + #??? """ ? | | #""" [=##############%#??? "T" # | | # ! #?????# #=### # | | ##"T"##=#?????# # # !! # | | ?#"""####?????# ; %+% !! # | | ?#####????????# #%% #* ! # | | ??????????????# =[[ #w #????????? | | ??????????????#==[[ "#= #????????? | | ??????????????# [ T#k #????????? | | ??????????????# "#[ ########## | | ??????????????# # ## # | | ??????????????######## a ## # | | ????????????????#???## ## ! # | | ???????????###### "## o # # | | ????????? #* / !# | | ????????? a +%! # | | ????????? @#= ]# | | ?????????? ########## # ] # | | ????????????????????###a### # | | ??????????????????????# ??#! # | | ??????????????????????# ??######### | | ??????????????????????#+??????????? | | ??????????????????????? ??????????? | | ??????????????????????? ??????????? | | ??????????????????????? ??????????? | | ??????????????????????????????????? | | ??????????????????????????????????? | | ??????????????????????????????????? | | ??????????????????????????????????? | | ??????????????????????????????????? | | ??????????????????????????????????? | | ??????????????????????????????????? | | ??????????????????????????????????? | | ??????????????????????????????????? | | ??????????????????????????????????? | | ??????????????????????????????????? | | ??????????????????????????????????? | | ??????????????????????????????????? | | ??????????????????????????????????? | | ??????????????????????????????????? | | ??????????????????????????????????? | +----------------------------------------------------+ Best States ------------- Heat Dissipation 107 Energy Generation 29 Energy Capacity 400 Matter Stores 300 Matter Capacity 300 Sight Range 16 Terrain Scan Density 10 Additional Mass Support 9 Resistance: KI 20 Resistance: TH 20 Resistance: EX 20 Resistance: EM 20 Resistance: I 20 Resistance: S 20 Resistance: P 20 Evasion (%) 64 Offensive Hacking 20 Item Schematics ----------------- None Robot Schematics ------------------ None Fabricated ------------ Nothing Alien Tech Used ----------------- None Achievements -------------- None Challenges ------------ None RPGLIKE | -11 -10 -10 -10 -9 -8 -8 -8 --------- Run | Yrd Mat Min Exi Min Mat Gar Sto Levels Raised 10 | . . 1 . 1 5 2 1 XP Earned 19683 | 4000 1300 1100 200 1295 7717 2555 1516 XP Spent 17395 | 3900 . 1100 . 1900 7570 2925 . Upgrades 44 | 13 . 3 . 2 18 8 . Power Slot 1 | 1 . . . . . . . Propulsion Slot 4 | 1 . . . 2 1 . . Utility Slot 4 | 1 . . . . 2 1 . Weapon Slot 1 | 1 . . . . . . . Core Integrity 11 | . . . . . 6 5 . Heat Dissipation 9 | 5 . . . . 4 . . Energy Generation 2 | . . . . . 2 . . Mass Support 3 | 2 . . . . 1 . . Inventory Capacity 2 | 2 . . . . . . . Ranged Accuracy 5 | . . 2 . . 2 1 . KI Damage % 1 | . . 1 . . . . . TH Damage % 1 | . . . . . . 1 . Protomatter Created 802 | . 92 130 . 12 365 87 116 Integrity Restored 1487 | . 114 237 . 36 584 219 297 Core 1308 | . 114 167 . 36 475 219 297 Parts 179 | . . 70 . . 109 . . Protomatter Decayed 226 | . . 41 . . 154 14 17 Game ------ Seed PulseGunMatrix Manual? 0 Play Time 00:27:55 Cumulative 69.5 hours Start 2024.05.15 @ 03:41:57 End 2024.05.15 @ 17:18:49 Sessions 9 Manual Loads 0 Difficulty Adventurer Special Mode Winter2019/RPGLIKE Game No. 45 Rogue 0 Adventurer 45 Explorer 0 Win Type - Total 3 Types 2/0/0/1/0/0/0/0/0 Lore% 44 Gallery% 48 Achievement% 59 Wizard Run 0 Options --------- Layout 2 ASCII 0 Keyboard 0 Movement Numpad Keybinds 0 Fullscreen 2 Font 24/Smallcaps Map View 50x44 Zoom Use 0% Tactical HUD 1 Map Filters NONE Filters NONE Steam 1 RUN: 075d4e38-2b06-4010-8b64-15f7caf93805